[Event "EYTCC Girls U18 2022"]
[Site "Thessaloniki"]
[Date "2022.07.15"]
[Round "4.2"]
[White "Ciolacu, Alessia-Mihaela"]
[Black "Mihelic, Vesna"]
[Result "1/2-1/2"]
[ECO "A06"]
[WhiteElo "2163"]
[BlackElo "2029"]
[Annotator "ChessBase"]
[PlyCount "59"]
[EventDate "2022.07.12"]
[EventType "team-tourn"]
[EventCountry "GRE"]
[SourceTitle "playchess.com"]
[Source "ChessBase"]
[SourceQuality "1"]
[WhiteTeam "Romania"]
[BlackTeam "Slovenia"]
[WhiteTeamCountry "ROU"]
[BlackTeamCountry "SLO"]
[TimeControl "40/5400+30:1800+30"]

1. Nf3 {[%emt 0:00:03]} d5 {[%emt 0:00:11]} 2. e3 {[%emt 0:00:07]} Nf6 {[%emt 0:00:20]} 3. c4 {[%emt 0:00:10]} e6 {[%emt 0:00:40]} 4. b3 {[%emt 0:00:28]} Be7 {[%emt 0:00:38]} 5. Bb2 {[%emt 0:00:16]} O-O {[%emt 0:00:33]} 6. Nc3 {[%emt 0:00:27]} c5 {[%emt 0:01:26]} 7. cxd5 {[%emt 0:00:19]} exd5 {[%emt 0:06:14]} 8. d4 {[%emt 0:00:20]} Bg4 {[%emt 0:08:40]} 9. Be2 {[%emt 0:00:51]} Nc6 {[%emt 0:00:57]} 10. dxc5 {[%emt 0:02:20]} Bxc5 {[%emt 0:00:26]} 11. O-O {[%emt 0:00:35]} Rc8 {[%emt 0:07:34]} 12. Rc1 {[%emt 0:01:57]} Be7 {[%emt 0:03:44]} 13. Nb5 {[%emt 0:04:57]} Ne4 {[%emt 0:06:41]} 14. Nfd4 {[%emt 0:04:45]} Bxe2 {[%emt 0:05:58]} 15. Qxe2 {[%emt 0:00:21]} Nxd4 {[%emt 0:04:53]} 16. Nxd4 {[%emt 0:05:58]} Bf6 {[%emt 0:01:22]} 17. Nf5 {[%emt 0:03:36]} Rxc1 {[%emt 0:08:13]} 18. Rxc1 {[%emt 0:00:17]} Qb6 {[%emt 0:01:37]} 19. Qg4 {[%emt 0:08:17]} g6 {[%emt 0:14:29]} 20. Nh6+ {[%emt 0:25:15]} Kg7 {[%emt 0:00:38]} 21. Ba3 {[%emt 0:00:19]} Rd8 {[%emt 0:10:32]} 22. Nf5+ {[%emt 0:03:12]} Kh8 {[%emt 0:00:21]} 23. Nh6 {[%emt 0:00:17]} Kg7 {[%emt 0:00:24]} 24. Nf5+ {[%emt 0:11:42]} Kh8 {[%emt 0:00:02]} 25. Nh6 {[%emt 0:10:15]} Kg7 {[%emt 0:00:02]} 26. Nf5+ {[%emt 0:00:57]} Kh8 {[%emt 0:00:07]} 27. Nh6 {[%emt 0:00:44]} Kg7 {[%emt 0:00:08]} 28. Nf5+ {[%emt 0:00:09]} Kh8 {[%emt 0:00:07]} 29. Nh6 {[%emt 0:00:03]} Kg7 {[%emt 0:00:08]} 30. Nf5+ {[%emt 0:00:03]} 1/2-1/2

[Event "EYTCC Girls U18 2022"]
[Site "Thessaloniki"]
[Date "2022.07.15"]
[Round "4.3"]
[White "Ziegenfuss, Antonia"]
[Black "Demeter, Dorina"]
[Result "0-1"]
[ECO "D11"]
[WhiteElo "2170"]
[BlackElo "2176"]
[Annotator "ChessBase"]
[PlyCount "106"]
[EventDate "2022.07.12"]
[EventType "team-tourn"]
[EventCountry "GRE"]
[SourceTitle "playchess.com"]
[Source "ChessBase"]
[SourceQuality "1"]
[WhiteTeam "Germany"]
[BlackTeam "Hungary"]
[WhiteTeamCountry "GER"]
[BlackTeamCountry "HUN"]
[TimeControl "40/5400+30:1800+30"]

1. d4 {[%emt 0:00:03]} d5 {[%emt 0:00:23]} 2. c4 {[%emt 0:00:15]} c6 {[%emt 0:00:08]} 3. Nf3 {[%emt 0:00:32]} Nf6 {[%emt 0:00:08]} 4. e3 {[%emt 0:00:08]} e6 {[%emt 0:04:56]} 5. Be2 {[%emt 0:05:41]} dxc4 {[%emt 0:01:39]} 6. Bxc4 {[%emt 0:00:19]} Nbd7 {[%emt 0:10:57]} 7. O-O {[%emt 0:02:44]} b5 {[%emt 0:01:03]} 8. Be2 {[%emt 0:01:57]} Nb6 {[%emt 0:00:48]} 9. Nbd2 {[%emt 0:05:49]} Bb7 {[%emt 0:03:30]} 10. Nb3 {[%emt 0:04:42]} Na4 {[%emt 0:21:43]} 11. Qc2 {[%emt 0:02:07]} Nd5 {[%emt 0:03:32]} 12. a3 {[%emt 0:01:35]} Bd6 {[%emt 0:06:24]} 13. Bd2 {[%emt 0:04:28]} Bc7 {[%emt 0:03:20]} 14. Rfd1 {[%emt 0:04:47]} O-O {[%emt 0:02:49]} 15. Bd3 {[%emt 0:15:54]} h6 {[%emt 0:01:41]} 16. Qc1 {[%emt 0:11:25]} a5 {[%emt 0:12:43]} 17. e4 {[%emt 0:04:02]} Ne7 {[%emt 0:00:26]} 18. Be3 {[%emt 0:04:23]} Qb8 {[%emt 0:04:19]} 19. e5 {[%emt 0:05:51]} f5 {[%emt 0:05:19]} 20. exf6 {[%emt 0:09:36]} Rxf6 {[%emt 0:00:08]} 21. Ne5 {[%emt 0:00:25]} Bxe5 {[%emt 0:04:50]} 22. dxe5 {[%emt 0:00:08]} Rf7 {[%emt 0:00:11]} 23. Nd4 {[%emt 0:03:39]} Qxe5 {[%emt 0:01:57]} 24. f4 {[%emt 0:00:42]} Qc5 {[%emt 0:01:16]} 25. Qd2 {[%emt 0:07:22]} Nd5 {[%emt 0:00:43]} 26. Rac1 {[%emt 0:00:18]} Qd6 {[%emt 0:01:14]} 27. b3 {[%emt 0:01:43]} Nb2 {[%emt 0:02:43]} 28. Re1 {[%emt 0:03:04]} Nxe3 {[%emt 0:02:19]} 29. Qxb2 {[%emt 0:00:11]} Rxf4 {[%emt 0:01:07]} 30. Rxe3 {[%emt 0:00:43]} Qxd4 {[%emt 0:00:02]} 31. Qxd4 {[%emt 0:00:48]} Rxd4 {[%emt 0:00:01]} 32. Be4 {[%emt 0:00:30]} Rad8 {[%emt 0:01:23]} 33. Kf2 {[%emt 0:00:34]} R8d6 {[%emt 0:00:50]} 34. Rc5 {[%emt 0:00:19]} Rd2+ {[%emt 0:01:00]} 35. Kg3 {[%emt 0:00:38]} Ra2 {[%emt 0:00:01]} 36. b4 {[%emt 0:00:21]} axb4 {[%emt 0:00:23]} 37. axb4 {[%emt 0:00:04]} Ra4 {[%emt 0:00:25]} 38. Rb3 {[%emt 0:00:16]} Kf7 {[%emt 0:01:20]} 39. Kf4 {[%emt 0:00:54]} Rd4 {[%emt 0:00:32]} 40. Ke5 {[%emt 0:00:00]} Rdxb4 {[%emt 0:00:00]} 41. Rf3+ {[%emt 0:04:40]} Ke7 {[%emt 0:01:47]} 42. Bg6 {[%emt 0:00:15]} Kd8 {[%emt 0:07:05]} 43. Rf7 {[%emt 0:03:29]} Kc8 {[%emt 0:04:51]} 44. Rxg7 {[%emt 0:03:43]} Rb2 {[%emt 0:06:24]} 45. Be4 {[%emt 0:08:12]} Re2 {[%emt 0:06:05]} 46. Kd6 {[%emt 0:01:10]} Rd4+ {[%emt 0:00:20]} 47. Rd5 {[%emt 0:00:26]} Rxd5+ {[%emt 0:00:31]} 48. Bxd5 {[%emt 0:00:06]} Kb8 {[%emt 0:01:21]} 49. Bxe6 {[%emt 0:02:06]} c5 {[%emt 0:01:08]} 50. Bd7 {[%emt 0:08:50]} c4 {[%emt 0:04:29]} 51. Rg8+ {[%emt 0:03:11]} Ka7 {[%emt 0:00:04]} 52. Bxb5 {[%emt 0:00:12]} Rd2+ {[%emt 0:00:25]} 53. Ke5 {[%emt 0:01:04]} Rd5+ {[%emt 0:00:13]} 0-1

[Event "EYTCC Girls U18 2022"]
[Site "Thessaloniki"]
[Date "2022.07.15"]
[Round "4.4"]
[White "Sulyok, Eszter"]
[Black "Bashylina, Luisa"]
[Result "1/2-1/2"]
[ECO "A20"]
[WhiteElo "2091"]
[BlackElo "2041"]
[Annotator "ChessBase"]
[PlyCount "165"]
[EventDate "2022.07.12"]
[EventType "team-tourn"]
[EventCountry "GRE"]
[SourceTitle "playchess.com"]
[Source "ChessBase"]
[SourceQuality "1"]
[WhiteTeam "Hungary"]
[BlackTeam "Germany"]
[WhiteTeamCountry "HUN"]
[BlackTeamCountry "GER"]
[TimeControl "40/5400+30:1800+30"]

1. c4 {[%emt 0:00:08]} e5 {[%emt 0:00:06]} 2. g3 {[%emt 0:00:06]} c6 {[%emt 0:00:27]} 3. d4 {[%emt 0:00:29]} e4 {[%emt 0:00:42]} 4. d5 {[%emt 0:01:38]} Bb4+ {[%emt 0:00:25]} 5. Bd2 {[%emt 0:01:34]} Qe7 {[%emt 0:00:15]} 6. Bg2 {[%emt 0:25:05]} Nf6 {[%emt 0:03:21]} 7. Nc3 {[%emt 0:03:34]} O-O {[%emt 0:05:23]} 8. Nh3 {[%emt 0:07:11]} cxd5 {[%emt 0:06:18]} 9. cxd5 {[%emt 0:09:54]} Bxc3 {[%emt 0:02:10]} 10. Bxc3 {[%emt 0:00:20]} d6 {[%emt 0:00:28]} 11. O-O {[%emt 0:01:04]} Bf5 {[%emt 0:01:55]} 12. Qb3 {[%emt 0:10:01]} b6 {[%emt 0:11:23]} 13. f3 {[%emt 0:17:30]} Nbd7 {[%emt 0:12:30]} 14. Qd1 {[%emt 0:01:17]} h6 {[%emt 0:01:53]} 15. Kh1 {[%emt 0:03:19]} Rfe8 {[%emt 0:03:28]} 16. Re1 {[%emt 0:00:21]} Rac8 {[%emt 0:04:12]} 17. Rc1 {[%emt 0:06:15]} Rc5 {[%emt 0:05:42]} 18. b4 {[%emt 0:00:06]} Rxd5 {[%emt 0:01:31]} 19. Qb3 e3 20. Nf4 {[%emt 0:06:10]} Rd2 21. Red1 {[%emt 0:00:34]} Bc2 {[%emt 0:01:44]} 22. Rxc2 {[%emt 0:03:28]} Rxd1+ {[%emt 0:00:12]} 23. Bf1 {[%emt 0:00:04]} Rxf1+ {[%emt 0:00:28]} 24. Kg2 {[%emt 0:00:00]} Rf2+ 25. Kg1 Ne5 {[%emt 0:04:35]} 26. Bxe5 {[%emt 0:01:09]} Qxe5 {[%emt 0:00:19]} 27. Nd3 {[%emt 0:00:06]} Qh5 28. Nxf2 {[%emt 0:00:00]} exf2+ {[%emt 0:01:00]} 29. Kxf2 {[%emt 0:00:00]} Qxh2+ {[%emt 0:00:08]} 30. Kf1 {[%emt 0:00:43]} Nh5 31. e4 Nxg3+ {[%emt 0:01:15]} 32. Ke1 {[%emt 0:00:38]} Qg1+ {[%emt 0:00:23]} 33. Kd2 {[%emt 0:00:12]} Nf1+ {[%emt 0:02:48]} 34. Ke2 {[%emt 0:00:15]} Nh2 {[%emt 0:01:11]} 35. Kd2 {[%emt 0:01:03]} Qf2+ {[%emt 0:00:45]} 36. Kc1 {[%emt 0:00:06]} Qf1+ {[%emt 0:00:19]} 37. Kb2 {[%emt 0:00:09]} Nxf3 {[%emt 0:00:14]} 38. Qa4 {[%emt 0:01:20]} Rxe4 {[%emt 0:00:49]} 39. Qxa7 {[%emt 0:01:10]} Rxb4+ {[%emt 0:01:25]} 40. Ka3 {[%emt 0:00:00]} Qb5 {[%emt 0:00:00]} 41. Rc8+ {[%emt 0:00:54]} Kh7 {[%emt 0:02:05]} 42. Qa8 {[%emt 0:02:58]} Qa5+ {[%emt 0:00:39]} 43. Qxa5 {[%emt 0:00:07]} bxa5 {[%emt 0:00:04]} 44. Rh8+ {[%emt 0:00:06]} Kg6 {[%emt 0:00:36]} 45. Rxh6+ {[%emt 0:00:06]} Kf5 {[%emt 0:07:53]} 46. Rh5+ {[%emt 0:18:58]} Ke6 {[%emt 0:21:54]} 47. Re5+ {[%emt 0:02:24]} Kd7 {[%emt 0:00:14]} 48. Re7+ {[%emt 0:00:05]} Kc6 {[%emt 0:00:12]} 49. Rc7+ {[%emt 0:00:11]} Kb6 {[%emt 0:00:28]} 50. Rc6+ {[%emt 0:00:35]} Kb7 {[%emt 0:03:51]} 51. Rc7+ {[%emt 0:00:15]} Kb8 {[%emt 0:02:16]} 52. Rc8+ {[%emt 0:00:06]} Ka7 {[%emt 0:00:03]} 53. Ra8+ {[%emt 0:00:12]} Kb6 {[%emt 0:00:19]} 54. Ra6+ {[%emt 0:00:12]} Kc5 {[%emt 0:01:22]} 55. Rc6+ {[%emt 0:00:07]} Kb5 {[%emt 0:02:12]} 56. Rc5+ {[%emt 0:00:11]} Kb6 {[%emt 0:00:14]} 57. Rc6+ {[%emt 0:00:13]} Ka7 {[%emt 0:00:17]} 58. Ra6+ {[%emt 0:00:12]} Kb7 {[%emt 0:01:32]} 59. Ra7+ {[%emt 0:00:05]} Kc6 {[%emt 0:00:36]} 60. Rc7+ {[%emt 0:00:10]} Kd5 {[%emt 0:00:07]} 61. Rc5+ {[%emt 0:00:07]} Kd4 {[%emt 0:02:09]} 62. Rd5+ {[%emt 0:00:11]} Ke3 {[%emt 0:02:57]} 63. Rd3+ {[%emt 0:00:18]} Ke4 {[%emt 0:00:28]} 64. Re3+ {[%emt 0:00:10]} Kf5 {[%emt 0:01:37]} 65. Re5+ {[%emt 0:00:07]} Kg4 {[%emt 0:01:43]} 66. Rg5+ {[%emt 0:00:13]} Kh3 {[%emt 0:00:11]} 67. Rg3+ {[%emt 0:00:09]} Kh4 {[%emt 0:00:14]} 68. Rh3+ {[%emt 0:00:47]} Kg5 {[%emt 0:01:37]} 69. Rh5+ {[%emt 0:00:11]} Kf4 {[%emt 0:00:39]} 70. Rf5+ {[%emt 0:00:09]} Ke4 {[%emt 0:00:42]} 71. Re5+ {[%emt 0:01:32]} Kd3 {[%emt 0:01:41]} 72. Re3+ {[%emt 0:00:09]} Kd4 {[%emt 0:07:28]} 73. Rd3+ {[%emt 0:00:55]} Kc5 {[%emt 0:02:06]} 74. Rd5+ {[%emt 0:00:09]} Kc6 {[%emt 0:00:13]} 75. Rc5+ {[%emt 0:00:42]} Kd7 {[%emt 0:01:30]} 76. Rc7+ {[%emt 0:00:05]} Ke6 {[%emt 0:01:06]} 77. Re7+ {[%emt 0:00:10]} Kf5 {[%emt 0:00:40]} 78. Re5+ {[%emt 0:01:04]} Kg4 {[%emt 0:01:49]} 79. Rg5+ {[%emt 0:00:07]} Kh4 {[%emt 0:00:33]} 80. Rh5+ {[%emt 0:00:12]} Kg3 {[%emt 0:00:17]} 81. Rh3+ {[%emt 0:00:06]} Kg2 {[%emt 0:00:43]} 82. Rg3+ {[%emt 0:00:21]} Kh1 {[%emt 0:01:13]} 83. Rh3+ {[%emt 0:00:10]} 1/2-1/2

[Event "EYTCC Girls U18 2022"]
[Site "Thessaloniki"]
[Date "2022.07.15"]
[Round "4.5"]
[White "Wikar, Martyna"]
[Black "Kara, Gulce Nehir"]
[Result "1/2-1/2"]
[ECO "B42"]
[WhiteElo "2208"]
[BlackElo "1907"]
[Annotator "ChessBase"]
[PlyCount "102"]
[EventDate "2022.07.12"]
[EventType "team-tourn"]
[EventCountry "GRE"]
[SourceTitle "playchess.com"]
[Source "ChessBase"]
[SourceQuality "1"]
[WhiteTeam "Poland"]
[BlackTeam "Turkey"]
[WhiteTeamCountry "POL"]
[BlackTeamCountry "TUR"]
[TimeControl "40/5400+30:1800+30"]

1. e4 {[%emt 0:00:06]} c5 {[%emt 0:00:07]} 2. Nf3 {[%emt 0:00:07]} e6 {[%emt 0:00:04]} 3. d4 {[%emt 0:00:09]} cxd4 {[%emt 0:00:07]} 4. Nxd4 {[%emt 0:00:03]} a6 {[%emt 0:00:08]} 5. Bd3 {[%emt 0:00:39]} Bc5 {[%emt 0:00:07]} 6. Nb3 {[%emt 0:00:50]} Be7 {[%emt 0:00:06]} 7. O-O {[%emt 0:00:57]} d6 {[%emt 0:00:46]} 8. c4 {[%emt 0:01:30]} Nf6 {[%emt 0:02:01]} 9. Nc3 {[%emt 0:00:56]} O-O {[%emt 0:03:45]} 10. Qe2 {[%emt 0:00:56]} b6 {[%emt 0:02:44]} 11. f4 {[%emt 0:01:54]} Nbd7 {[%emt 0:03:59]} 12. Bd2 {[%emt 0:04:15]} Bb7 {[%emt 0:02:04]} 13. Rae1 {[%emt 0:01:01]} Rc8 {[%emt 0:08:03]} 14. Kh1 {[%emt 0:02:41]} e5 {[%emt 0:13:45]} 15. f5 {[%emt 0:01:54]} Nc5 {[%emt 0:07:01]} 16. Nxc5 {[%emt 0:00:56]} dxc5 {[%emt 0:00:37]} 17. Nd5 {[%emt 0:02:14]} Re8 {[%emt 0:09:06]} 18. Rf3 {[%emt 0:04:05]} Bxd5 {[%emt 0:06:47]} 19. cxd5 {[%emt 0:00:51]} b5 {[%emt 0:01:22]} 20. b3 {[%emt 0:05:40]} Qc7 {[%emt 0:00:48]} 21. Rc1 {[%emt 0:00:26]} Nd7 {[%emt 0:03:36]} 22. Rh3 {[%emt 0:02:39]} g6 {[%emt 0:05:00]} 23. Qg4 {[%emt 0:04:37]} Qd6 {[%emt 0:02:15]} 24. Rf1 {[%emt 0:03:27]} c4 {[%emt 0:03:43]} 25. bxc4 {[%emt 0:01:57]} bxc4 {[%emt 0:00:05]} 26. Bc2 {[%emt 0:00:16]} Nf6 {[%emt 0:08:50]} 27. Qf3 {[%emt 0:06:50]} Rc7 {[%emt 0:01:55]} 28. g4 {[%emt 0:01:05]} c3 {[%emt 0:01:43]} 29. Bc1 {[%emt 0:01:58]} Bd8 {[%emt 0:04:52]} 30. g5 {[%emt 0:04:53]} Nh5 {[%emt 0:00:43]} 31. f6 {[%emt 0:01:15]} Rc4 {[%emt 0:01:18]} 32. Rxh5 {[%emt 0:03:34]} gxh5 {[%emt 0:00:16]} 33. Qxh5 {[%emt 0:00:08]} Qf8 {[%emt 0:03:22]} 34. Rf3 {[%emt 0:12:52]} Kh8 {[%emt 0:00:07]} 35. Rh3 {[%emt 0:02:18]} Qg8 {[%emt 0:00:06]} 36. Qe2 {[%emt 0:00:08]} Rb4 {[%emt 0:04:22]} 37. Qxa6 {[%emt 0:02:25]} Bb6 {[%emt 0:00:33]} 38. a3 {[%emt 0:02:18]} Ra8 {[%emt 0:00:39]} 39. Qb7 {[%emt 0:04:08]} Rb8 {[%emt 0:00:40]} 40. Qe7 {[%emt 0:00:00]} Rb2 {[%emt 0:00:00]} 41. Rxc3 {[%emt 0:12:13]} Bd4 {[%emt 0:04:42]} 42. Bxb2 {[%emt 0:13:35]} Bxc3 {[%emt 0:01:48]} 43. Bxc3 {[%emt 0:03:31]} Qxg5 {[%emt 0:00:30]} 44. Bxe5 {[%emt 0:02:18]} Qc1+ {[%emt 0:10:36]} 45. Kg2 {[%emt 0:00:55]} Qxc2+ {[%emt 0:00:19]} 46. Kh3 {[%emt 0:01:08]} Rg8 {[%emt 0:00:35]} 47. Bg3 {[%emt 0:02:54]} Qe2 {[%emt 0:00:16]} 48. Qxf7 {[%emt 0:11:14]} Qg4+ {[%emt 0:00:33]} 49. Kg2 {[%emt 0:00:05]} Qe2+ {[%emt 0:00:05]} 50. Kg1 {[%emt 0:00:36]} Qe1+ {[%emt 0:00:04]} 51. Kg2 {[%emt 0:00:05]} Qe2+ {[%emt 0:00:03]} 1/2-1/2

[Event "EYTCC Girls U18 2022"]
[Site "Thessaloniki"]
[Date "2022.07.15"]
[Round "4.6"]
[White "Kayis, Gulcan Sena"]
[Black "Marcinczyk, Monika"]
[Result "1-0"]
[ECO "B22"]
[WhiteElo "1682"]
[BlackElo "1991"]
[Annotator "ChessBase"]
[PlyCount "117"]
[EventDate "2022.07.12"]
[EventType "team-tourn"]
[EventCountry "GRE"]
[SourceTitle "playchess.com"]
[Source "ChessBase"]
[SourceQuality "1"]
[WhiteTeam "Turkey"]
[BlackTeam "Poland"]
[WhiteTeamCountry "TUR"]
[BlackTeamCountry "POL"]
[TimeControl "40/5400+30:1800+30"]

1. e4 {[%emt 0:00:04]} c5 {[%emt 0:00:08]} 2. c3 {[%emt 0:00:10]} Nf6 {[%emt 0:00:06]} 3. e5 {[%emt 0:00:17]} Nd5 {[%emt 0:00:06]} 4. Nf3 {[%emt 0:00:36]} Nc6 {[%emt 0:01:02]} 5. d4 {[%emt 0:00:38]} cxd4 {[%emt 0:00:10]} 6. cxd4 {[%emt 0:00:11]} d6 {[%emt 0:00:10]} 7. Bc4 {[%emt 0:00:19]} Nb6 {[%emt 0:00:24]} 8. Bb5 {[%emt 0:00:15]} dxe5 {[%emt 0:00:34]} 9. Nxe5 {[%emt 0:00:14]} Bd7 {[%emt 0:00:40]} 10. Nxd7 {[%emt 0:00:15]} Qxd7 {[%emt 0:00:36]} 11. Nc3 {[%emt 0:00:19]} e6 {[%emt 0:01:00]} 12. O-O {[%emt 0:00:20]} Be7 {[%emt 0:04:34]} 13. Qg4 {[%emt 0:02:24]} Bf6 {[%emt 0:08:01]} 14. Rd1 {[%emt 0:08:58]} a6 {[%emt 0:18:36]} 15. Bxc6 {[%emt 0:02:24]} Qxc6 {[%emt 0:00:15]} 16. Be3 {[%emt 0:10:51]} Nd5 {[%emt 0:10:17]} 17. Rac1 {[%emt 0:07:11]} Nxc3 {[%emt 0:03:38]} 18. Rxc3 {[%emt 0:02:54]} Qd5 {[%emt 0:01:26]} 19. b3 {[%emt 0:09:54]} b6 {[%emt 0:04:28]} 20. Rc7 {[%emt 0:08:42]} O-O {[%emt 0:06:15]} 21. Qe2 {[%emt 0:05:00]} Rfd8 {[%emt 0:02:27]} 22. Rd2 {[%emt 0:04:41]} b5 {[%emt 0:12:32]} 23. Rc5 {[%emt 0:04:40]} Qb7 {[%emt 0:00:57]} 24. h3 {[%emt 0:04:23]} Rd7 {[%emt 0:02:55]} 25. a4 {[%emt 0:06:45]} Be7 {[%emt 0:04:28]} 26. Rcc2 {[%emt 0:06:04]} Qd5 {[%emt 0:02:51]} 27. Qd3 {[%emt 0:02:22]} Bb4 {[%emt 0:01:13]} 28. Rd1 {[%emt 0:02:26]} Rad8 {[%emt 0:01:33]} 29. f4 {[%emt 0:02:31]} f6 {[%emt 0:00:48]} 30. Rf1 {[%emt 0:02:33]} e5 {[%emt 0:01:35]} 31. fxe5 {[%emt 0:00:47]} fxe5 {[%emt 0:00:03]} 32. Rf5 {[%emt 0:02:08]} Qd6 {[%emt 0:06:08]} 33. axb5 {[%emt 0:01:19]} exd4 {[%emt 0:00:18]} 34. Bf4 {[%emt 0:00:58]} Qe7 {[%emt 0:01:02]} 35. Bg5 {[%emt 0:00:53]} Qe1+ {[%emt 0:01:15]} 36. Rf1 {[%emt 0:00:05]} Qe5 {[%emt 0:01:56]} 37. Bxd8 {[%emt 0:02:32]} Bd6 {[%emt 0:00:52]} 38. g3 {[%emt 0:01:10]} Rxd8 {[%emt 0:00:09]} 39. bxa6 {[%emt 0:00:11]} Qg5 {[%emt 0:02:30]} 40. Rf3 {[%emt 0:00:00]} Qa5 {[%emt 0:00:00]} 41. Kg2 {[%emt 0:06:00]} h6 {[%emt 0:07:58]} 42. Qxd4 {[%emt 0:05:03]} Qxa6 {[%emt 0:01:17]} 43. Qc4+ {[%emt 0:00:05]} Qxc4 {[%emt 0:00:07]} 44. bxc4 {[%emt 0:00:09]} Rc8 {[%emt 0:00:19]} 45. Rf5 {[%emt 0:00:22]} Bc5 {[%emt 0:00:11]} 46. Kf3 {[%emt 0:00:08]} g6 {[%emt 0:00:23]} 47. Rd5 {[%emt 0:00:11]} Kf7 {[%emt 0:00:16]} 48. Ke4 {[%emt 0:00:12]} h5 {[%emt 0:03:19]} 49. Ra2 {[%emt 0:01:44]} Be7 {[%emt 0:01:16]} 50. Kd3 {[%emt 0:00:43]} Rb8 {[%emt 0:00:40]} 51. Rb5 {[%emt 0:00:14]} Rd8+ {[%emt 0:00:07]} 52. Ke4 {[%emt 0:00:09]} Rd1 {[%emt 0:00:49]} 53. c5 {[%emt 0:01:09]} Rc1 {[%emt 0:00:17]} 54. Kd5 {[%emt 0:00:10]} Rd1+ {[%emt 0:00:20]} 55. Kc6 {[%emt 0:00:10]} Rd3 {[%emt 0:00:06]} 56. Re2 {[%emt 0:02:11]} Bg5 {[%emt 0:01:29]} 57. Kb7 {[%emt 0:01:08]} Rd7+ {[%emt 0:01:57]} 58. Ka6 {[%emt 0:00:16]} Bd8 {[%emt 0:00:22]} 59. Rb7 {[%emt 0:00:35]} 1-0

[Event "EYTCC Girls U18 2022"]
[Site "Thessaloniki"]
[Date "2022.07.15"]
[Round "4.7"]
[White "Levitan, Ronit"]
[Black "Sheikh, Anum"]
[Result "1/2-1/2"]
[ECO "B03"]
[WhiteElo "2084"]
[BlackElo "1799"]
[Annotator "ChessBase"]
[PlyCount "60"]
[EventDate "2022.07.12"]
[EventType "team-tourn"]
[EventCountry "GRE"]
[SourceTitle "playchess.com"]
[Source "ChessBase"]
[SourceQuality "1"]
[WhiteTeam "Israel"]
[BlackTeam "England"]
[WhiteTeamCountry "ISR"]
[BlackTeamCountry "ENG"]
[TimeControl "40/5400+30:1800+30"]

1. e4 {[%emt 0:00:41]} Nf6 {[%emt 0:00:08]} 2. e5 {[%emt 0:00:06]} Nd5 {[%emt 0:00:05]} 3. d4 {[%emt 0:00:04]} Nb6 {[%emt 0:00:03]} 4. Nf3 {[%emt 0:01:37]} d5 {[%emt 0:00:18]} 5. Bd3 {[%emt 0:01:04]} Bg4 {[%emt 0:00:21]} 6. h3 {[%emt 0:00:51]} Bxf3 {[%emt 0:00:14]} 7. Qxf3 {[%emt 0:00:08]} e6 {[%emt 0:00:04]} 8. c3 {[%emt 0:00:59]} c5 {[%emt 0:02:09]} 9. O-O {[%emt 0:12:35]} Nc6 {[%emt 0:03:39]} 10. Be3 {[%emt 0:02:40]} c4 {[%emt 0:15:05]} 11. Bc2 {[%emt 0:00:20]} Be7 {[%emt 0:02:23]} 12. Nd2 {[%emt 0:04:18]} Qc7 {[%emt 0:01:47]} 13. Qe2 {[%emt 0:04:47]} a6 {[%emt 0:06:16]} 14. Rfb1 {[%emt 0:20:43]} Na5 {[%emt 0:02:52]} 15. a4 {[%emt 0:04:55]} Rb8 {[%emt 0:05:06]} 16. Rf1 {[%emt 0:03:16]} Nd7 {[%emt 0:08:24]} 17. f4 {[%emt 0:02:48]} g6 18. g4 {[%emt 0:00:30]} Rg8 {[%emt 0:07:38]} 19. Kh1 {[%emt 0:00:14]} b5 {[%emt 0:00:13]} 20. axb5 {[%emt 0:00:54]} Rxb5 {[%emt 0:11:23]} 21. Ra2 {[%emt 0:01:07]} Qb6 {[%emt 0:06:37]} 22. Rb1 {[%emt 0:02:37]} Nb3 {[%emt 0:04:25]} 23. Ra4 {[%emt 0:04:40]} Nxd2 {[%emt 0:01:41]} 24. Qxd2 {[%emt 0:00:08]} Rxb2 {[%emt 0:04:07]} 25. Rxb2 {[%emt 0:00:14]} Qxb2 {[%emt 0:00:05]} 26. Rxa6 {[%emt 0:00:16]} Qb7 {[%emt 0:00:18]} 27. Ra1 {[%emt 0:00:06]} Nb6 {[%emt 0:01:53]} 28. Qe2 {[%emt 0:03:53]} Kd7 {[%emt 0:01:31]} 29. f5 {[%emt 0:03:38]} Ra8 {[%emt 0:03:05]} 30. fxe6+ {[%emt 0:00:09]} fxe6 {[%emt 0:00:14]} 1/2-1/2

[Event "EYTCC Girls U18 2022"]
[Site "Thessaloniki"]
[Date "2022.07.15"]
[Round "4.8"]
[White "Pert, Nina"]
[Black "Kochavi, Dana"]
[Result "0-1"]
[ECO "B15"]
[WhiteElo "1703"]
[BlackElo "1885"]
[Annotator "NA"]
[PlyCount "68"]
[EventDate "2022.07.12"]
[EventType "team-tourn"]
[EventCountry "GRE"]
[SourceTitle "playchess.com"]
[Source "ChessBase"]
[SourceQuality "1"]
[WhiteTeam "England"]
[BlackTeam "Israel"]
[WhiteTeamCountry "ENG"]
[BlackTeamCountry "ISR"]
[TimeControl "40/5400+30:1800+30"]

1. e4 {[%emt 0:00:05]} c6 {[%emt 0:00:07]} 2. d4 {[%emt 0:00:09]} d5 {[%emt 0:00:08]} 3. Nc3 {[%emt 0:00:16]} dxe4 {[%emt 0:00:07]} 4. Nxe4 {[%emt 0:00:05]} Nf6 {[%emt 0:00:12]} 5. Nxf6+ {[%emt 0:00:20]} exf6 {[%emt 0:00:06]} 6. c3 {[%emt 0:00:15]} Bd6 {[%emt 0:00:06]} 7. Bd3 {[%emt 0:00:18]} O-O {[%emt 0:00:11]} 8. Ne2 {[%emt 0:00:19]} Re8 {[%emt 0:00:10]} 9. O-O {[%emt 0:00:40]} Qc7 {[%emt 0:02:33]} 10. Qc2 {[%emt 0:02:03]} Bxh2+ {[%emt 0:15:56]} 11. Kh1 {[%emt 0:00:06]} Bd6 {[%emt 0:00:06]} 12. Bxh7+ {[%emt 0:00:08]} Kh8 {[%emt 0:04:34]} 13. Bd3 {[%emt 0:01:49]} g6 {[%emt 0:02:31]} 14. c4 {[%emt 0:13:56]} Kg7 {[%emt 0:06:14]} 15. f4 {[%emt 0:01:20]} Bg4 {[%emt 0:08:30]} 16. Ng3 {[%emt 0:04:24]} f5 {[%emt 0:04:06]} 17. c5 {[%emt 0:03:06]} Be7 {[%emt 0:05:42]} 18. b4 {[%emt 0:02:56]} Nd7 {[%emt 0:02:10]} 19. Bb2 {[%emt 0:11:08]} Nf6 {[%emt 0:01:44]} 20. Bc4 {[%emt 0:02:42]} Rad8 {[%emt 0:01:11]} 21. a4 {[%emt 0:16:01]} Nd5 {[%emt 0:02:45]} 22. Bxd5 {[%emt 0:01:00]} Rxd5 {[%emt 0:00:07]} 23. Ne2 {[%emt 0:04:57]} Bf6 {[%emt 0:08:45]} 24. Rae1 {[%emt 0:01:09]} Qe7 {[%emt 0:01:46]} 25. Nc1 {[%emt 0:02:44]} Qxe1 {[%emt 0:00:20]} 26. Rxe1 {[%emt 0:00:04]} Rxe1+ {[%emt 0:00:06]} 27. Kh2 {[%emt 0:00:03]} Re4 {[%emt 0:02:07]} 28. Nb3 {[%emt 0:05:08]} Re2 {[%emt 0:02:27]} 29. Qc3 {[%emt 0:00:10]} Bf3 {[%emt 0:01:23]} 30. Qxf3 {[%emt 0:00:49]} Rxb2 {[%emt 0:00:07]} 31. Qd3 {[%emt 0:01:46]} Ra2 {[%emt 0:01:34]} 32. Na5 {[%emt 0:07:46]} Rxd4 {[%emt 0:00:30]} 33. Qf3 {[%emt 0:02:09]} Rxb4 {[%emt 0:00:50]} 34. Nb3 {[%emt 0:01:30]} Ra3 {[%emt 0:00:35]} 0-1